[Event "21st Sants Open 2019"]
[Site "Cotxeres de Sants"]
[Date "2019.08.24"]
[Round "2.12"]
[White "Munoz, Miguel"]
[Black "Aizpurua, Patrick"]
[Result "1/2-1/2"]
[ECO "C22"]
[WhiteElo "2514"]
[BlackElo "2261"]
[Annotator "ChessBase"]
[PlyCount "71"]
[EventDate "2019.08.22"]
[EventType "swiss"]
[EventCountry "ESP"]
[SourceTitle "playchess.com"]
[Source "ChessBase"]
[SourceQuality "1"]
[TimeControl "40/5400+30:1800+30"]

1. e4 {[%emt 0:16:15]} e5 {[%emt 0:00:00]} 2. d4 {[%emt 0:00:10]} exd4 {[%emt 0:00:00]} 3. Qxd4 {[%emt 0:00:05]} Nc6 {[%emt 0:00:00]} 4. Qe3 {[%emt 0:00:05]} Nf6 {[%emt 0:00:00]} 5. Bd2 {[%emt 0:00:06]} Bb4 {[%emt 0:06:33]} 6. c3 {[%emt 0:00:25]} Ba5 {[%emt 0:01:39]} 7. c4 {[%emt 0:00:09]} Bxd2+ {[%emt 0:06:42]} 8. Nxd2 {[%emt 0:00:09]} O-O {[%emt 0:01:15]} 9. O-O-O {[%emt 0:00:07]} Re8 {[%emt 0:02:04]} 10. f3 {[%emt 0:00:07]} Qe7 {[%emt 0:03:37]} 11. Nb1 {[%emt 0:01:26]} d6 {[%emt 0:01:14]} 12. Nc3 {[%emt 0:00:28]} Ne5 {[%emt 0:05:37]} 13. g4 {[%emt 0:04:12]} Be6 {[%emt 0:03:27]} 14. g5 {[%emt 0:00:06]} Nfd7 {[%emt 0:02:19]} 15. b3 {[%emt 0:00:09]} Nb6 {[%emt 0:13:16]} 16. f4 {[%emt 0:01:59]} Nc6 {[%emt 0:00:31]} 17. Nge2 {[%emt 0:06:44]} a5 {[%emt 0:09:06]} 18. Nd5 {[%emt 0:02:13]} Bxd5 {[%emt 0:05:01]} 19. cxd5 {[%emt 0:00:08]} Nb4 {[%emt 0:05:17]} 20. Nc3 {[%emt 0:01:47]} Nd7 {[%emt 0:12:22]} 21. Kb2 {[%emt 0:09:22]} Nc5 {[%emt 0:01:11]} 22. a3 {[%emt 0:00:57]} c6 {[%emt 0:03:46]} 23. Qd4 {[%emt 0:09:03]} Nba6 {[%emt 0:02:38]} 24. dxc6 {[%emt 0:06:13]} bxc6 {[%emt 0:00:12]} 25. Bxa6 {[%emt 0:00:05]} Rxa6 {[%emt 0:02:53]} 26. Qxd6 {[%emt 0:00:14]} Qa7 {[%emt 0:02:47]} 27. Qd8 {[%emt 0:25:07]} Kf8 {[%emt 0:00:15]} 28. Qd6+ {[%emt 0:13:07]} Kg8 {[%emt 0:00:07]} 29. Qd8 {[%emt 0:01:08]} Kf8 {[%emt 0:00:16]} 30. Qd6+ {[%emt 0:02:14]} Kg8 31. Qd8 Rf8 32. Qd4 Qb6 33. Qc4 Raa8 34. Kc2 Rab8 35. Rb1 Ne6 36. Ne2 1/2-1/2

[Event "21st Sants Open 2019"]
[Site "Cotxeres de Sants"]
[Date "2019.08.24"]
[Round "2.13"]
[White "Marzocchi, Tommaso"]
[Black "Gines Esteo, Pedro Antonio"]
[Result "0-1"]
[ECO "B13"]
[WhiteElo "2198"]
[BlackElo "2417"]
[Annotator "NA"]
[PlyCount "104"]
[EventDate "2019.08.22"]
[EventType "swiss"]
[EventCountry "ESP"]
[SourceTitle "playchess.com"]
[Source "ChessBase"]
[SourceQuality "1"]
[TimeControl "40/5400+30:1800+30"]

1. e4 {[%emt 0:05:23]} c6 {[%emt 0:00:00]} 2. d4 {[%emt 0:00:27]} d5 {[%emt 0:00:00]} 3. exd5 {[%emt 0:00:06]} cxd5 {[%emt 0:00:00]} 4. c4 {[%emt 0:00:09]} Nf6 {[%emt 0:00:00]} 5. Nc3 {[%emt 0:00:06]} Nc6 {[%emt 0:02:16]} 6. Bg5 {[%emt 0:00:24]} Be6 {[%emt 0:01:04]} 7. a3 {[%emt 0:01:12]} Qd7 {[%emt 0:05:08]} 8. Be2 {[%emt 0:01:11]} O-O-O {[%emt 0:15:15]} 9. c5 {[%emt 0:01:12]} Ne4 {[%emt 0:02:30]} 10. Nf3 {[%emt 0:03:00]} f6 {[%emt 0:14:12]} 11. Be3 {[%emt 0:01:09]} g5 {[%emt 0:00:07]} 12. Qa4 {[%emt 0:12:15]} Bg7 {[%emt 0:09:43]} 13. Rd1 {[%emt 0:06:58]} h6 {[%emt 0:08:37]} 14. Nd2 {[%emt 0:14:55]} f5 {[%emt 0:15:57]} 15. Ndxe4 {[%emt 0:06:52]} f4 {[%emt 0:00:08]} 16. Bc1 {[%emt 0:02:12]} dxe4 {[%emt 0:00:17]} 17. d5 {[%emt 0:02:29]} Bxc3+ {[%emt 0:00:06]} 18. bxc3 {[%emt 0:00:07]} Bxd5 {[%emt 0:00:02]} 19. c4 {[%emt 0:04:40]} f3 {[%emt 0:00:14]} 20. cxd5 {[%emt 0:05:22]} fxe2 {[%emt 0:01:27]} 21. Rd2 {[%emt 0:00:58]} Qg4 {[%emt 0:22:10]} 22. dxc6 {[%emt 0:02:14]} Qxg2 {[%emt 0:00:19]} 23. Qxa7 {[%emt 0:14:14]} Qxh1+ {[%emt 0:00:05]} 24. Kxe2 {[%emt 0:00:06]} Qf3+ {[%emt 0:00:03]} 25. Ke1 {[%emt 0:01:32]} Qh1+ {[%emt 0:00:01]} 26. Ke2 {[%emt 0:00:10]} Qf3+ {[%emt 0:00:00]} 27. Ke1 {[%emt 0:00:06]} Qb3 {[%emt 0:00:24]} 28. Qa8+ {[%emt 0:01:37]} Kc7 {[%emt 0:00:02]} 29. Qa5+ {[%emt 0:00:17]} b6 {[%emt 0:02:45]} 30. Qa7+ {[%emt 0:03:44]} Kxc6 {[%emt 0:00:09]} 31. cxb6 {[%emt 0:00:06]} Rxd2 {[%emt 0:01:15]} 32. Qc7+ {[%emt 0:00:08]} Kb5 {[%emt 0:01:12]} 33. Bxd2 {[%emt 0:00:06]} Qb1+ {[%emt 0:00:07]} 34. Bc1 {[%emt 0:00:29]} Ka6 {[%emt 0:00:52]} 35. Qa7+ {[%emt 0:01:07]} Kb5 {[%emt 0:00:01]} 36. Qc7 {[%emt 0:00:08]} e3 {[%emt 0:00:59]} 37. fxe3 {[%emt 0:01:16]} Rf8 {[%emt 0:00:01]} 38. Qd7+ {[%emt 0:04:29]} Kxb6 {[%emt 0:00:18]} 39. Qd4+ {[%emt 0:00:15]} Kc6 {[%emt 0:00:56]} 40. Qc4+ {[%emt 0:00:00]} Kd7 {[%emt 0:00:00]} 41. Qa4+ {[%emt 0:13:39]} Ke6 {[%emt 0:03:26]} 42. Qc4+ {[%emt 0:02:20]} Kf6 {[%emt 0:03:33]} 43. e4 {[%emt 0:02:21]} Qb6 {[%emt 0:00:13]} 44. Bd2 {[%emt 0:08:57]} Qg1+ {[%emt 0:08:08]} 45. Ke2 {[%emt 0:00:24]} Qxh2+ {[%emt 0:00:34]} 46. Ke1 {[%emt 0:02:28]} Qg1+ {[%emt 0:00:47]} 47. Ke2 {[%emt 0:00:07]} Qg4+ {[%emt 0:00:29]} 48. Ke1 {[%emt 0:01:06]} Kg6 {[%emt 0:00:28]} 49. Qc6+ {[%emt 0:00:46]} Kh5 {[%emt 0:00:48]} 50. e5 {[%emt 0:00:59]} Qg3+ {[%emt 0:01:27]} 51. Ke2 {[%emt 0:00:12]} Rf2+ {[%emt 0:00:19]} 52. Kd1 {[%emt 0:00:06]} Qd3 {[%emt 0:01:04]} 0-1

[Event "21st Sants Open 2019"]
[Site "Cotxeres de Sants"]
[Date "2019.08.24"]
[Round "2.14"]
[White "Melia, Salome"]
[Black "Sole Pijuan, Ferran"]
[Result "1-0"]
[ECO "C55"]
[WhiteElo "2376"]
[BlackElo "2158"]
[Annotator "ChessBase"]
[PlyCount "143"]
[EventDate "2019.08.22"]
[EventType "swiss"]
[EventCountry "ESP"]
[SourceTitle "playchess.com"]
[Source "ChessBase"]
[SourceQuality "1"]
[TimeControl "40/5400+30:1800+30"]

1. e4 {[%emt 0:00:00]} e5 {[%emt 0:00:15]} 2. Nf3 {[%emt 0:00:00]} Nc6 {[%emt 0:00:12]} 3. Bc4 {[%emt 0:00:00]} Nf6 {[%emt 0:00:15]} 4. d4 {[%emt 0:01:32]} exd4 {[%emt 0:01:04]} 5. e5 {[%emt 0:00:07]} d5 {[%emt 0:00:33]} 6. Bb5 {[%emt 0:00:06]} Ne4 {[%emt 0:00:11]} 7. Nxd4 {[%emt 0:00:19]} Bd7 {[%emt 0:00:10]} 8. Bxc6 {[%emt 0:01:23]} bxc6 {[%emt 0:00:06]} 9. O-O {[%emt 0:08:03]} Bc5 {[%emt 0:00:21]} 10. Be3 {[%emt 0:01:19]} O-O {[%emt 0:01:12]} 11. Nd2 {[%emt 0:03:50]} Nxd2 {[%emt 0:04:53]} 12. Qxd2 {[%emt 0:00:09]} Bb6 {[%emt 0:11:34]} 13. Nb3 {[%emt 0:04:08]} Qe7 {[%emt 0:02:27]} 14. Rae1 {[%emt 0:10:27]} h6 15. f4 Bf5 {[%emt 0:15:40]} 16. Qc3 {[%emt 0:12:21]} Qd7 {[%emt 0:09:18]} 17. Nc5 {[%emt 0:06:09]} Bxc5 18. Bxc5 {[%emt 0:04:56]} Rfe8 {[%emt 0:02:20]} 19. h3 {[%emt 0:13:16]} h5 20. Rf3 {[%emt 0:00:15]} Re6 {[%emt 0:16:28]} 21. Rg3 Rg6 {[%emt 0:05:36]} 22. Rxg6 {[%emt 0:00:38]} Bxg6 {[%emt 0:08:19]} 23. Qe3 {[%emt 0:09:39]} Bxc2 24. Bxa7 {[%emt 0:00:53]} Be4 {[%emt 0:01:53]} 25. a3 {[%emt 0:04:15]} Qf5 {[%emt 0:02:01]} 26. Bd4 {[%emt 0:00:52]} Qg6 {[%emt 0:01:07]} 27. Re2 {[%emt 0:01:36]} Bd3 {[%emt 0:01:05]} 28. Rd2 {[%emt 0:01:33]} Bc4 {[%emt 0:00:38]} 29. Kh2 Rb8 {[%emt 0:00:41]} 30. b4 {[%emt 0:02:25]} Ra8 {[%emt 0:01:56]} 31. Bb2 Bb5 32. Qg3 {[%emt 0:03:49]} Qxg3+ {[%emt 0:03:08]} 33. Kxg3 Kf8 {[%emt 0:06:27]} 34. Kh4 {[%emt 0:04:29]} g6 35. f5 gxf5 {[%emt 0:03:32]} 36. Kxh5 {[%emt 0:04:35]} Ke7 {[%emt 0:00:03]} 37. Kg5 {[%emt 0:02:27]} Ke6 {[%emt 0:00:20]} 38. Kf4 {[%emt 0:01:21]} Rg8 {[%emt 0:01:26]} 39. Rf2 {[%emt 0:01:00]} Rg6 {[%emt 0:01:42]} 40. Bd4 {[%emt 0:00:00]} Rg8 {[%emt 0:00:00]} 41. g4 {[%emt 0:11:17]} fxg4 {[%emt 0:02:07]} 42. hxg4 {[%emt 0:00:13]} Rh8 {[%emt 0:00:59]} 43. Kg3 {[%emt 0:00:58]} Ra8 {[%emt 0:10:22]} 44. Rf6+ {[%emt 0:03:40]} Ke7 {[%emt 0:00:19]} 45. Bc5+ {[%emt 0:00:03]} Ke8 {[%emt 0:00:25]} 46. Rf3 {[%emt 0:02:26]} Rd8 {[%emt 0:03:44]} 47. g5 {[%emt 0:02:24]} Kd7 {[%emt 0:06:23]} 48. Bd4 {[%emt 0:02:57]} Ke7 {[%emt 0:01:23]} 49. Rf6 {[%emt 0:01:26]} Ra8 {[%emt 0:00:02]} 50. Bc5+ {[%emt 0:00:09]} Kd7 {[%emt 0:04:00]} 51. e6+ fxe6 {[%emt 0:00:06]} 52. Rf7+ {[%emt 0:08:32]} Kc8 53. Rf8+ {[%emt 0:00:55]} Kb7 {[%emt 0:00:35]} 54. Rxa8 Kxa8 55. g6 {[%emt 0:01:53]} Bd3 {[%emt 0:00:30]} 56. g7 {[%emt 0:00:00]} Bh7 {[%emt 0:00:10]} 57. Kf4 {[%emt 0:00:00]} Kb7 {[%emt 0:00:12]} 58. Ke5 {[%emt 0:00:38]} Bg8 {[%emt 0:02:00]} 59. a4 {[%emt 0:00:18]} Kc8 {[%emt 0:01:22]} 60. Kf6 {[%emt 0:03:13]} Kd7 {[%emt 0:00:05]} 61. a5 {[%emt 0:01:02]} Kc8 {[%emt 0:00:09]} 62. a6 {[%emt 0:00:32]} Kb8 {[%emt 0:00:24]} 63. Bd4 {[%emt 0:00:23]} Ka8 {[%emt 0:00:06]} 64. Bc5 {[%emt 0:00:22]} Kb8 {[%emt 0:00:09]} 65. Ke7 {[%emt 0:00:44]} e5 66. Kf6 d4 {[%emt 0:00:43]} 67. Kxe5 {[%emt 0:00:37]} d3 {[%emt 0:00:00]} 68. Be3 d2 {[%emt 0:00:00]} 69. Bxd2 {[%emt 0:00:25]} Ka7 {[%emt 0:00:18]} 70. Be3+ {[%emt 0:00:52]} Kxa6 71. Kf6 {[%emt 0:00:31]} Kb7 {[%emt 0:07:07]} 72. Ke7 1-0

[Event "21st Sants Open 2019"]
[Site "Cotxeres de Sants"]
[Date "2019.08.24"]
[Round "2.15"]
[White "Garcia Gallardo, Victor"]
[Black "Rodriguez Regull, German"]
[Result "0-1"]
[ECO "B00"]
[WhiteElo "1767"]
[BlackElo "1944"]
[Annotator "NA"]
[PlyCount "102"]
[EventDate "2019.08.22"]
[EventType "swiss"]
[EventCountry "ESP"]
[SourceTitle "playchess.com"]
[Source "ChessBase"]
[SourceQuality "1"]
[TimeControl "40/5400+30:1800+30"]

1. e4 {[%emt 0:00:00]} b6 {[%emt 0:00:01]} 2. d4 {[%emt 0:00:00]} Bb7 {[%emt 0:00:14]} 3. Bd3 {[%emt 0:00:01]} e6 {[%emt 0:03:08]} 4. Nf3 {[%emt 0:01:01]} Nf6 {[%emt 0:00:31]} 5. Qe2 {[%emt 0:01:36]} d5 {[%emt 0:00:36]} 6. e5 {[%emt 0:01:34]} Ne4 {[%emt 0:00:34]} 7. Nbd2 {[%emt 0:00:58]} Nxd2 {[%emt 0:00:35]} 8. Bxd2 {[%emt 0:00:17]} c5 {[%emt 0:00:22]} 9. c3 {[%emt 0:00:30]} Nc6 {[%emt 0:00:18]} 10. O-O {[%emt 0:00:55]} Be7 {[%emt 0:00:25]} 11. a3 {[%emt 0:15:44]} a5 {[%emt 0:01:28]} 12. a4 {[%emt 0:02:36]} O-O {[%emt 0:01:19]} 13. Rac1 {[%emt 0:06:19]} h6 {[%emt 0:07:13]} 14. Bb1 {[%emt 0:01:13]} Ba6 {[%emt 0:00:18]} 15. Bd3 {[%emt 0:00:12]} Bxd3 {[%emt 0:00:15]} 16. Qxd3 {[%emt 0:00:08]} Qd7 {[%emt 0:04:01]} 17. Qb5 {[%emt 0:05:56]} c4 {[%emt 0:01:52]} 18. b3 {[%emt 0:00:31]} cxb3 {[%emt 0:01:44]} 19. Qxb3 {[%emt 0:01:51]} Rab8 {[%emt 0:01:25]} 20. Rfd1 {[%emt 0:11:19]} Rfc8 {[%emt 0:05:49]} 21. Qb5 {[%emt 0:01:54]} Qb7 {[%emt 0:02:32]} 22. c4 {[%emt 0:08:41]} Na7 {[%emt 0:14:18]} 23. Qb3 {[%emt 0:00:09]} dxc4 {[%emt 0:00:31]} 24. Rxc4 {[%emt 0:00:18]} Rxc4 {[%emt 0:00:13]} 25. Qxc4 {[%emt 0:00:13]} Rc8 {[%emt 0:00:08]} 26. Qb3 {[%emt 0:00:36]} Nc6 {[%emt 0:05:09]} 27. h3 {[%emt 0:03:17]} Nb4 {[%emt 0:00:15]} 28. Bxb4 {[%emt 0:02:30]} Bxb4 {[%emt 0:00:03]} 29. Rd3 {[%emt 0:09:35]} Rd8 {[%emt 0:01:52]} 30. Qc4 {[%emt 0:01:46]} Qd7 {[%emt 0:02:14]} 31. Qb3 {[%emt 0:05:28]} Qc6 {[%emt 0:00:20]} 32. Rd1 {[%emt 0:01:07]} b5 {[%emt 0:03:50]} 33. axb5 {[%emt 0:01:57]} Qxb5 {[%emt 0:00:02]} 34. Rb1 {[%emt 0:04:02]} Qc6 {[%emt 0:03:01]} 35. Qb2 {[%emt 0:03:18]} Rc8 {[%emt 0:00:48]} 36. Qa2 {[%emt 0:00:40]} Qe4 {[%emt 0:00:46]} 37. Rf1 {[%emt 0:04:36]} g5 {[%emt 0:01:10]} 38. Qa4 {[%emt 0:00:44]} Qc6 {[%emt 0:05:55]} 39. Ra1 {[%emt 0:03:19]} Qd5 {[%emt 0:01:46]} 40. Rb1 {[%emt 0:00:00]} Kg7 {[%emt 0:00:00]} 41. Rxb4 {[%emt 0:02:55]} axb4 {[%emt 0:02:06]} 42. Qxb4 {[%emt 0:00:07]} Rc1+ {[%emt 0:03:47]} 43. Kh2 {[%emt 0:00:29]} Qe4 {[%emt 0:00:17]} 44. Qd2 {[%emt 0:03:07]} Rc2 {[%emt 0:01:01]} 45. Qe3 {[%emt 0:00:25]} Qxe3 {[%emt 0:01:27]} 46. fxe3 {[%emt 0:00:07]} Re2 {[%emt 0:00:17]} 47. Kg3 {[%emt 0:00:28]} Rxe3 {[%emt 0:00:17]} 48. h4 {[%emt 0:01:53]} Kg6 {[%emt 0:01:11]} 49. hxg5 {[%emt 0:01:52]} hxg5 {[%emt 0:00:02]} 50. Kf2 {[%emt 0:01:36]} Re4 {[%emt 0:01:08]} 51. Kg3 {[%emt 0:02:26]} Kh5 {[%emt 0:01:04]} 0-1

[Event "21st Sants Open 2019"]
[Site "Cotxeres de Sants"]
[Date "2019.08.24"]
[Round "2.16"]
[White "Moyano Barrero, Antoni"]
[Black "Morais Carreras, Javier"]
[Result "0-1"]
[ECO "C42"]
[WhiteElo "1760"]
[BlackElo "1939"]
[Annotator "NA"]
[PlyCount "110"]
[EventDate "2019.08.22"]
[EventType "swiss"]
[EventCountry "ESP"]
[SourceTitle "playchess.com"]
[Source "ChessBase"]
[SourceQuality "1"]
[TimeControl "40/5400+30:1800+30"]

1. e4 {[%emt 0:00:00]} e5 {[%emt 0:00:07]} 2. Nf3 {[%emt 0:00:00]} Nf6 {[%emt 0:00:07]} 3. Nxe5 {[%emt 0:00:00]} d6 {[%emt 0:00:08]} 4. Nf3 {[%emt 0:00:00]} Nxe4 {[%emt 0:00:07]} 5. Nc3 {[%emt 0:00:00]} Nxc3 {[%emt 0:00:09]} 6. dxc3 {[%emt 0:00:00]} Be7 {[%emt 0:00:09]} 7. Be3 {[%emt 0:00:04]} Nc6 {[%emt 0:01:03]} 8. Qd2 {[%emt 0:00:24]} Be6 {[%emt 0:00:12]} 9. Nd4 {[%emt 0:01:49]} Nxd4 {[%emt 0:01:43]} 10. Bxd4 {[%emt 0:00:07]} O-O {[%emt 0:01:57]} 11. c4 {[%emt 0:04:39]} Re8 {[%emt 0:05:07]} 12. O-O-O {[%emt 0:01:15]} Qd7 {[%emt 0:04:30]} 13. Qc3 {[%emt 0:01:53]} Bf8 {[%emt 0:00:50]} 14. h4 {[%emt 0:01:24]} Qa4 {[%emt 0:01:13]} 15. h5 {[%emt 0:09:35]} c5 {[%emt 0:04:04]} 16. Be3 {[%emt 0:14:18]} Qxa2 {[%emt 0:03:25]} 17. Bd3 {[%emt 0:07:27]} Be7 {[%emt 0:03:38]} 18. Qb3 {[%emt 0:07:40]} Qa1+ {[%emt 0:08:27]} 19. Kd2 {[%emt 0:00:10]} Qa5+ {[%emt 0:00:07]} 20. c3 {[%emt 0:02:26]} a6 {[%emt 0:02:16]} 21. Qc2 {[%emt 0:02:00]} h6 {[%emt 0:00:45]} 22. f3 {[%emt 0:04:53]} d5 {[%emt 0:01:07]} 23. Ra1 {[%emt 0:04:59]} Qd8 {[%emt 0:01:09]} 24. cxd5 {[%emt 0:00:42]} Qxd5 {[%emt 0:01:51]} 25. c4 {[%emt 0:04:09]} Qd6 {[%emt 0:01:43]} 26. Rad1 {[%emt 0:03:46]} Bf6 {[%emt 0:04:59]} 27. Kc1 {[%emt 0:03:05]} Qc7 {[%emt 0:00:56]} 28. Be4 {[%emt 0:01:03]} Rad8 {[%emt 0:04:49]} 29. g4 {[%emt 0:02:36]} Bd4 {[%emt 0:02:15]} 30. Bd2 {[%emt 0:01:25]} Bf6 {[%emt 0:08:30]} 31. Bc3 {[%emt 0:06:02]} Bxc3 {[%emt 0:01:36]} 32. Qxc3 {[%emt 0:00:17]} b5 {[%emt 0:01:32]} 33. cxb5 {[%emt 0:01:28]} axb5 {[%emt 0:00:15]} 34. Rxd8 {[%emt 0:02:02]} Rxd8 {[%emt 0:00:12]} 35. Rd1 {[%emt 0:02:41]} Rb8 {[%emt 0:07:15]} 36. Qe3 {[%emt 0:03:31]} Qa5 {[%emt 0:02:06]} 37. Bb1 {[%emt 0:01:58]} Qb4 {[%emt 0:01:29]} 38. Qe4 {[%emt 0:07:03]} Qxe4 {[%emt 0:00:16]} 39. Bxe4 {[%emt 0:00:02]} Kf8 {[%emt 0:00:40]} 40. Rd6 {[%emt 0:00:00]} Ke7 {[%emt 0:00:00]} 41. Rc6 {[%emt 0:05:03]} Rc8 {[%emt 0:02:47]} 42. Rb6 {[%emt 0:00:33]} b4 {[%emt 0:02:05]} 43. Kd2 {[%emt 0:01:00]} Rd8+ {[%emt 0:00:58]} 44. Kc2 {[%emt 0:02:03]} Rd4 {[%emt 0:03:40]} 45. Rc6 {[%emt 0:06:46]} c4 {[%emt 0:04:53]} 46. Rb6 {[%emt 0:02:12]} b3+ {[%emt 0:00:48]} 47. Kc3 {[%emt 0:01:46]} Rd1 {[%emt 0:00:43]} 48. Rb8 {[%emt 0:01:29]} Kf6 {[%emt 0:00:35]} 49. Rb5 {[%emt 0:00:43]} Re1 {[%emt 0:00:57]} 50. Rc5 {[%emt 0:00:44]} Re2 {[%emt 0:03:06]} 51. Rc6 {[%emt 0:08:24]} Ke5 {[%emt 0:02:36]} 52. Rxe6+ {[%emt 0:01:45]} fxe6 {[%emt 0:01:03]} 53. Kxc4 {[%emt 0:01:04]} Rxb2 {[%emt 0:01:28]} 54. Kc3 {[%emt 0:00:01]} Re2 {[%emt 0:00:20]} 55. Kd3 {[%emt 0:01:21]} Rxe4 {[%emt 0:00:47] Kd4+} 0-1

[Event "21st Sants Open 2019"]
[Site "Cotxeres de Sants"]
[Date "2019.08.24"]
[Round "2.17"]
[White "Castells Pagan, Raul"]
[Black "Garcia Ruiz, Adrian"]
[Result "1-0"]
[ECO "E92"]
[WhiteElo "1759"]
[BlackElo "1933"]
[Annotator "NA"]
[PlyCount "93"]
[EventDate "2019.08.22"]
[EventType "swiss"]
[EventCountry "ESP"]
[SourceTitle "playchess.com"]
[Source "ChessBase"]
[SourceQuality "1"]
[TimeControl "40/5400+30:1800+30"]

1. d4 {[%emt 0:00:00]} Nf6 {[%emt 0:22:09]} 2. Nf3 {[%emt 0:00:48]} g6 {[%emt 0:00:09]} 3. c4 {[%emt 0:00:24]} Bg7 {[%emt 0:00:02]} 4. Nc3 {[%emt 0:00:54]} O-O {[%emt 0:00:03]} 5. e4 {[%emt 0:00:23]} d6 {[%emt 0:00:02]} 6. Be2 {[%emt 0:00:30]} e5 {[%emt 0:00:15]} 7. d5 {[%emt 0:00:16]} a5 {[%emt 0:00:10]} 8. O-O {[%emt 0:00:54]} Nbd7 {[%emt 0:00:18]} 9. b3 {[%emt 0:09:10]} Nc5 {[%emt 0:00:47]} 10. Qc2 {[%emt 0:00:29]} Nh5 {[%emt 0:01:39]} 11. Be3 {[%emt 0:12:41]} Nf4 {[%emt 0:01:03]} 12. a3 {[%emt 0:09:17]} f5 {[%emt 0:00:32]} 13. b4 {[%emt 0:04:39]} axb4 {[%emt 0:02:01]} 14. axb4 {[%emt 0:04:38]} Rxa1 {[%emt 0:00:02]} 15. Rxa1 {[%emt 0:00:02]} Nxe4 {[%emt 0:01:13]} 16. Nxe4 {[%emt 0:05:58]} fxe4 {[%emt 0:00:30]} 17. Ne1 {[%emt 0:00:17]} Bf5 {[%emt 0:01:46]} 18. Ra7 {[%emt 0:03:59]} b6 {[%emt 0:01:28]} 19. Bf1 {[%emt 0:02:48]} Qb8 {[%emt 0:02:46]} 20. Ra3 {[%emt 0:03:54]} Kh8 {[%emt 0:01:49]} 21. g3 {[%emt 0:02:22]} Nh5 {[%emt 0:02:35]} 22. h3 {[%emt 0:06:46]} Nf6 {[%emt 0:00:38]} 23. g4 {[%emt 0:00:18]} Bd7 {[%emt 0:00:19]} 24. Bg2 {[%emt 0:04:36]} Qc8 {[%emt 0:01:01]} 25. Bxe4 {[%emt 0:02:45]} Nxe4 {[%emt 0:00:02]} 26. Qxe4 {[%emt 0:00:15]} c6 {[%emt 0:05:40]} 27. Nd3 {[%emt 0:08:44]} cxd5 {[%emt 0:01:12]} 28. cxd5 {[%emt 0:01:11]} Qc2 {[%emt 0:04:37]} 29. Bxb6 {[%emt 0:06:12]} Bb5 {[%emt 0:00:39]} 30. Kg2 {[%emt 0:01:24]} Qd1 {[%emt 0:02:05]} 31. Bc7 {[%emt 0:04:02]} Qd2 {[%emt 0:03:15]} 32. Qe3 {[%emt 0:00:27]} Qc2 {[%emt 0:03:18]} 33. Bxd6 {[%emt 0:00:45]} Re8 {[%emt 0:03:53]} 34. Bxe5 {[%emt 0:02:46]} Kg8 {[%emt 0:00:01]} 35. Rc3 {[%emt 0:01:32]} Qa2 {[%emt 0:01:43]} 36. Qd4 {[%emt 0:00:21]} Bxd3 {[%emt 0:02:27]} 37. Bxg7 {[%emt 0:00:14]} Be4+ {[%emt 0:00:36]} 38. Kg3 {[%emt 0:00:43]} Qa6 {[%emt 0:11:12]} 39. Bh6 {[%emt 0:00:37]} Qd6+ {[%emt 0:00:42]} 40. Bf4 {[%emt 0:00:00]} Qe7 {[%emt 0:00:00]} 41. Rc7 {[%emt 0:04:14]} Qf8 {[%emt 0:01:26]} 42. d6 {[%emt 0:02:07]} g5 {[%emt 0:01:00]} 43. Qc4+ {[%emt 0:04:52]} Kh8 {[%emt 0:00:36]} 44. Qd4+ {[%emt 0:01:05]} Kg8 {[%emt 0:00:01]} 45. Bxg5 {[%emt 0:00:48]} Re6 {[%emt 0:01:49]} 46. d7 {[%emt 0:02:52]} Qf3+ {[%emt 0:02:23]} 47. Kh4 {[%emt 0:00:09]} 1-0

[Event "21st Sants Open 2019"]
[Site "Cotxeres de Sants"]
[Date "2019.08.24"]
[Round "2.18"]
[White "Tortosa Moros, Joan"]
[Black "Gomez de Argila, Lluis"]
[Result "1/2-1/2"]
[ECO "B11"]
[WhiteElo "1640"]
[BlackElo "1503"]
[Annotator "NA"]
[PlyCount "89"]
[EventDate "2019.08.22"]
[EventType "swiss"]
[EventCountry "ESP"]
[SourceTitle "playchess.com"]
[Source "ChessBase"]
[SourceQuality "1"]
[TimeControl "40/5400+30:1800+30"]

1. e4 {[%emt 0:01:05]} c6 {[%emt 0:00:00]} 2. Nf3 {[%emt 0:00:20]} d5 {[%emt 0:00:13]} 3. Nc3 {[%emt 0:00:23]} Bg4 {[%emt 0:00:39]} 4. exd5 {[%emt 0:00:35]} cxd5 {[%emt 0:00:23]} 5. Be2 {[%emt 0:02:06]} Nf6 {[%emt 0:00:38]} 6. h3 {[%emt 0:00:36]} Bh5 {[%emt 0:00:37]} 7. Ne5 {[%emt 0:02:09]} Bxe2 {[%emt 0:00:45]} 8. Qxe2 {[%emt 0:00:07]} a6 {[%emt 0:02:10]} 9. d4 {[%emt 0:05:07]} Nc6 {[%emt 0:02:47]} 10. Nxc6 {[%emt 0:02:48]} bxc6 {[%emt 0:00:08]} 11. O-O {[%emt 0:00:23]} e6 {[%emt 0:00:19]} 12. Qd3 {[%emt 0:05:19]} Be7 {[%emt 0:04:52]} 13. Re1 {[%emt 0:03:09]} O-O {[%emt 0:00:09]} 14. Bf4 {[%emt 0:04:32]} c5 {[%emt 0:01:06]} 15. dxc5 {[%emt 0:02:25]} Bxc5 {[%emt 0:00:21]} 16. Re2 {[%emt 0:06:11]} Bd6 {[%emt 0:07:14]} 17. Bg5 {[%emt 0:05:46]} h6 {[%emt 0:00:53]} 18. Bh4 {[%emt 0:01:08]} g5 {[%emt 0:00:34]} 19. Bg3 {[%emt 0:00:47]} Bxg3 {[%emt 0:00:34]} 20. Qxg3 {[%emt 0:00:24]} Kh7 {[%emt 0:02:56]} 21. Qd3+ {[%emt 0:01:59]} Kg8 {[%emt 0:00:17]} 22. Qd4 {[%emt 0:05:06]} Re8 {[%emt 0:03:16]} 23. Re3 {[%emt 0:04:07]} a5 {[%emt 0:00:58]} 24. Rae1 {[%emt 0:00:59]} Rb8 {[%emt 0:03:26]} 25. Rf3 {[%emt 0:02:49]} Kg7 {[%emt 0:01:22]} 26. Rg3 {[%emt 0:03:23]} Rxb2 {[%emt 0:02:47]} 27. Qe5 {[%emt 0:11:46]} Qb8 {[%emt 0:02:58]} 28. Qe2 {[%emt 0:03:27]} Rb4 {[%emt 0:06:12]} 29. Rf3 {[%emt 0:03:25]} Ne4 {[%emt 0:03:03]} 30. Qd1 {[%emt 0:07:08]} Nxc3 {[%emt 0:02:03]} 31. Rxc3 {[%emt 0:00:09]} Qb6 {[%emt 0:04:49]} 32. Qa1 {[%emt 0:01:16]} f6 {[%emt 0:02:01]} 33. Rf3 {[%emt 0:00:48]} e5 {[%emt 0:00:15]} 34. Rb3 {[%emt 0:02:17]} d4 {[%emt 0:01:52]} 35. Rxb4 {[%emt 0:00:31]} axb4 {[%emt 0:00:36]} 36. Rb1 {[%emt 0:00:24]} Ra8 {[%emt 0:03:54]} 37. a3 {[%emt 0:04:58]} Qc5 {[%emt 0:01:02]} 38. a4 {[%emt 0:01:39]} Qxc2 {[%emt 0:01:00]} 39. Rxb4 {[%emt 0:00:25]} d3 {[%emt 0:00:43]} 40. Rb7+ {[%emt 0:00:00]} Kg6 {[%emt 0:00:00]} 41. Qb1 {[%emt 0:18:33]} Rxa4 {[%emt 0:01:30]} 42. Qb5 {[%emt 0:09:44]} d2 43. Qe8+ {[%emt 0:04:31]} Kf5 {[%emt 0:01:32]} 44. Qd7+ {[%emt 0:00:56]} Kg6 {[%emt 0:04:13]} 45. Qh7+ {Kf5} 1/2-1/2